[Event "Early-Titled-Tuesday-Blitz-June-18-2024"]
[Site "Chess.com"]
[Date "2024.06.18"]
[Round "10"]
[White "Lion-Al-Messi"]
[Black "KnightDuta"]
[Result "1-0"]
[WhiteElo "2647"]
[BlackElo "2726"]
[TimeControl "180+1"]
[EndTime "9:58:18 PDT"]
[Termination "Lion-Al-Messi won by checkmate"]

1. e4 {[%clk 0:03:00.9]} 1... d5 {[%clk 0:02:55.9]} 2. exd5 {[%clk 0:03:00.5]}
2... Nf6 {[%clk 0:02:56.6]} 3. Nf3 {[%clk 0:02:59.8]} 3... Nxd5 {[%clk
0:02:56.1]} 4. d4 {[%clk 0:02:59.9]} 4... Bg4 {[%clk 0:02:56.7]} 5. Be2 {[%clk
0:03:00]} 5... e6 {[%clk 0:02:57]} 6. h3 {[%clk 0:03:00.2]} 6... Bh5 {[%clk
0:02:56.8]} 7. g4 {[%clk 0:03:00.3]} 7... Bg6 {[%clk 0:02:57.1]} 8. c4 {[%clk
0:03:00]} 8... Nb6 {[%clk 0:02:57]} 9. Nc3 {[%clk 0:02:59.8]} 9... Nc6 {[%clk
0:02:53.7]} 10. Be3 {[%clk 0:02:57.5]} 10... Bb4 {[%clk 0:02:53]} 11. O-O {[%clk
0:02:56.6]} 11... h5 {[%clk 0:02:49.9]} 12. d5 {[%clk 0:02:56.2]} 12... exd5
{[%clk 0:02:43.5]} 13. Nxd5 {[%clk 0:02:56.2]} 13... hxg4 {[%clk 0:02:40.5]} 14.
hxg4 {[%clk 0:02:55.3]} 14... Be4 {[%clk 0:02:31.9]} 15. Nxb4 {[%clk 0:02:51.4]}
15... Qc8 {[%clk 0:01:58]} 16. Nh2 {[%clk 0:02:28.8]} 16... Nxb4 {[%clk
0:01:50.2]} 17. Qd4 {[%clk 0:02:28.7]} 17... Qe6 {[%clk 0:01:48]} 18. Rad1
{[%clk 0:02:03.3]} 18... Nd7 {[%clk 0:01:08.2]} 19. Bf4 {[%clk 0:01:38]} 19...
Nc6 {[%clk 0:01:04]} 20. Qe3 {[%clk 0:01:24.4]} 20... O-O-O {[%clk 0:00:55]} 21.
f3 {[%clk 0:01:23.9]} 21... g5 {[%clk 0:00:50]} 22. Bxg5 {[%clk 0:01:09.6]}
22... f6 {[%clk 0:00:34.9]} 23. Bf4 {[%clk 0:01:05.4]} 23... f5 {[%clk
0:00:15.5]} 24. fxe4 {[%clk 0:01:04.1]} 24... fxg4 {[%clk 0:00:16.1]} 25. Bxg4
{[%clk 0:00:56.6]} 25... Rhg8 {[%clk 0:00:15.5]} 26. Qg3 {[%clk 0:00:53.4]}
26... Qxc4 {[%clk 0:00:14.8]} 27. Bxc7 {[%clk 0:00:37.9]} 27... Qc5+ {[%clk
0:00:13.9]} 28. Kh1 {[%clk 0:00:34.7]} 28... Rxg4 {[%clk 0:00:13.5]} 29. Nxg4
{[%clk 0:00:29]} 29... Qh5+ {[%clk 0:00:11.9]} 30. Nh2 {[%clk 0:00:26.8]} 30...
Rh8 {[%clk 0:00:07.9]} 31. Qg7 {[%clk 0:00:15.4]} 31... Rh7 {[%clk 0:00:02.9]}
32. Qg3 {[%clk 0:00:05.4]} 32... Nde5 {[%clk 0:00:01.7]} 33. Bxe5 {[%clk
0:00:04.9]} 33... Nxe5 {[%clk 0:00:02.6]} 34. Rc1+ {[%clk 0:00:05.2]} 34... Kd7
{[%clk 0:00:02.6]} 35. Rfd1+ {[%clk 0:00:05.2]} 35... Ke7 {[%clk 0:00:02.9]} 36.
Rc7+ {[%clk 0:00:04.8]} 36... Ke6 {[%clk 0:00:03.8]} 37. Rxh7 {[%clk 0:00:03.8]}
37... Qxh7 {[%clk 0:00:04.7]} 38. Qg2 {[%clk 0:00:02.9]} 38... Qh5 {[%clk
0:00:04.9]} 39. Re1 {[%clk 0:00:02.2]} 39... Qh4 {[%clk 0:00:05]} 40. Qe2 {[%clk
0:00:02.1]} 40... Qg3 {[%clk 0:00:04.8]} 41. Rg1 {[%clk 0:00:02.1]} 41... Qh3
{[%clk 0:00:05.3]} 42. Qg2 {[%clk 0:00:02.2]} 42... Qe3 {[%clk 0:00:05]} 43.
Qg8+ {[%clk 0:00:03.1]} 43... Kd6 {[%clk 0:00:05.4]} 44. Qd8+ {[%clk 0:00:03.7]}
44... Kc6 {[%clk 0:00:05.8]} 45. Qe8+ {[%clk 0:00:04]} 45... Kd6 {[%clk
0:00:06.1]} 46. Rd1+ {[%clk 0:00:03.8]} 46... Nd3 {[%clk 0:00:06.2]} 47. Rxd3+
{[%clk 0:00:03.8]} 47... Kc5 {[%clk 0:00:05.2]} 48. Rxe3 {[%clk 0:00:03.4]}
48... Kd4 {[%clk 0:00:05.9]} 49. Qd7+ {[%clk 0:00:02.8]} 49... Kxe3 {[%clk
0:00:06.8]} 50. e5 {[%clk 0:00:03.5]} 50... b5 {[%clk 0:00:07.7]} 51. e6 {[%clk
0:00:03.8]} 51... b4 {[%clk 0:00:08.6]} 52. e7 {[%clk 0:00:04]} 52... b3 {[%clk
0:00:09.5]} 53. e8=Q+ {[%clk 0:00:04.3]} 53... Kf2 {[%clk 0:00:09.7]} 54. Qdf7+
{[%clk 0:00:04.4]} 54... Kg3 {[%clk 0:00:10.5]} 55. Qe3+ {[%clk 0:00:04.5]}
55... Kh4 {[%clk 0:00:10.6]} 56. Qh7# {[%clk 0:00:04.8]} 1-0

[Event "Early-Titled-Tuesday-Blitz-June-18-2024"]
[Site "Chess.com"]
[Date "2024.06.18"]
[Round "10"]
[White "Herzog2012"]
[Black "Defend1r"]
[Result "0-1"]
[WhiteElo "2617"]
[BlackElo "2550"]
[TimeControl "180+1"]
[EndTime "9:58:21 PDT"]
[Termination "Defend1r won on time"]

1. e4 {[%clk 0:03:00.9]} 1... c5 {[%clk 0:02:57.2]} 2. Nf3 {[%clk 0:03:00.5]}
2... d6 {[%clk 0:02:57.1]} 3. d4 {[%clk 0:03:00.2]} 3... cxd4 {[%clk 0:02:56.5]}
4. Nxd4 {[%clk 0:03:01]} 4... Nf6 {[%clk 0:02:56.3]} 5. Nc3 {[%clk 0:03:01.2]}
5... a6 {[%clk 0:02:56.6]} 6. Bg5 {[%clk 0:03:01.3]} 6... e6 {[%clk 0:02:56.8]}
7. f4 {[%clk 0:03:00.6]} 7... Nbd7 {[%clk 0:02:55.7]} 8. Qf3 {[%clk 0:02:59.9]}
8... h6 {[%clk 0:02:55.8]} 9. Bh4 {[%clk 0:02:56.1]} 9... e5 {[%clk 0:02:54.3]}
10. Bxf6 {[%clk 0:02:44.4]} 10... Nxf6 {[%clk 0:02:40.2]} 11. Nf5 {[%clk
0:02:41.1]} 11... g6 {[%clk 0:02:39.6]} 12. Ne3 {[%clk 0:02:27.7]} 12... exf4
{[%clk 0:02:20.9]} 13. Qxf4 {[%clk 0:02:19.4]} 13... h5 {[%clk 0:02:20.8]} 14.
Ned5 {[%clk 0:02:06.6]} 14... Nxd5 {[%clk 0:02:15]} 15. Nxd5 {[%clk 0:02:03.3]}
15... Bh6 {[%clk 0:02:13.7]} 16. Qf2 {[%clk 0:01:43.6]} 16... Be6 {[%clk
0:01:52.2]} 17. Bc4 {[%clk 0:01:37.9]} 17... O-O {[%clk 0:01:32.1]} 18. O-O
{[%clk 0:01:34.7]} 18... Rc8 {[%clk 0:01:31]} 19. Bb3 {[%clk 0:01:22.6]} 19...
Bg7 {[%clk 0:01:28.5]} 20. c3 {[%clk 0:01:20.2]} 20... Kh8 {[%clk 0:01:20.9]}
21. Nf4 {[%clk 0:01:16.2]} 21... Bxb3 {[%clk 0:01:17.3]} 22. axb3 {[%clk
0:01:17.1]} 22... Qg5 {[%clk 0:01:07.8]} 23. Nd5 {[%clk 0:01:14.8]} 23... Rce8
{[%clk 0:01:06.9]} 24. Rae1 {[%clk 0:01:12.1]} 24... Be5 {[%clk 0:01:00.3]} 25.
Re3 {[%clk 0:00:53.9]} 25... f5 {[%clk 0:00:51.9]} 26. Rf3 {[%clk 0:00:38.7]}
26... f4 {[%clk 0:00:09.5]} 27. Nxf4 {[%clk 0:00:28.5]} 27... Bxf4 {[%clk
0:00:08.1]} 28. Rxf4 {[%clk 0:00:29.4]} 28... Rxf4 {[%clk 0:00:07.8]} 29. Qxf4
{[%clk 0:00:30.3]} 29... Qxf4 {[%clk 0:00:08.7]} 30. Rxf4 {[%clk 0:00:31.2]}
30... Kg7 {[%clk 0:00:09.5]} 31. Kf2 {[%clk 0:00:30.5]} 31... Re5 {[%clk
0:00:05.8]} 32. c4 {[%clk 0:00:16.6]} 32... Ra5 {[%clk 0:00:03.5]} 33. Ke3
{[%clk 0:00:15.1]} 33... Ra1 {[%clk 0:00:04.1]} 34. Rf2 {[%clk 0:00:14.8]} 34...
Re1+ {[%clk 0:00:04.4]} 35. Kd4 {[%clk 0:00:11.6]} 35... Rd1+ {[%clk 0:00:03.1]}
36. Kc3 {[%clk 0:00:11.8]} 36... g5 {[%clk 0:00:02.2]} 37. Rf5 {[%clk
0:00:07.6]} 37... Kg6 {[%clk 0:00:02.6]} 38. Rd5 {[%clk 0:00:07.1]} 38... Rg1
{[%clk 0:00:03.3]} 39. Rxd6+ {[%clk 0:00:06.9]} 39... Kf7 {[%clk 0:00:04]} 40.
Rd7+ {[%clk 0:00:07.4]} 40... Ke6 {[%clk 0:00:04.7]} 41. Rxb7 {[%clk 0:00:06.7]}
41... Rxg2 {[%clk 0:00:05.3]} 42. Rb6+ {[%clk 0:00:05.9]} 42... Ke5 {[%clk
0:00:05.7]} 43. c5 {[%clk 0:00:04.1]} 43... Rg1 {[%clk 0:00:03.8]} 44. b4 {[%clk
0:00:02.1]} 44... g4 {[%clk 0:00:03.8]} 45. Rxa6 {[%clk 0:00:01.8]} 45... h4
{[%clk 0:00:04.1]} 46. Rh6 {[%clk 0:00:01.4]} 46... h3 {[%clk 0:00:04]} 47. Rg6
{[%clk 0:00:01.4]} 47... Kxe4 {[%clk 0:00:03.9]} 48. Kc4 {[%clk 0:00:01.6]}
48... Kf5 {[%clk 0:00:04.4]} 49. Rg8 {[%clk 0:00:01.3]} 49... Rg2 {[%clk
0:00:04.9]} 50. c6 {[%clk 0:00:01.8]} 50... Rxh2 {[%clk 0:00:05.2]} 51. Kb5
{[%clk 0:00:02.1]} 51... Rc2 {[%clk 0:00:05]} 52. Kb6 {[%clk 0:00:01.8]} 52...
h2 {[%clk 0:00:05.7]} 53. Rh8 {[%clk 0:00:02]} 53... g3 {[%clk 0:00:06.3]} 54.
c7 {[%clk 0:00:02.4]} 54... g2 {[%clk 0:00:06.4]} 55. Rxh2 {[%clk 0:00:02.3]}
55... g1=Q+ {[%clk 0:00:06.8]} 0-1

[Event "Early-Titled-Tuesday-Blitz-June-18-2024"]
[Site "Chess.com"]
[Date "2024.06.18"]
[Round "10"]
[White "Chernov_Alexander_A"]
[Black "Dr_Pepper18"]
[Result "0-1"]
[WhiteElo "2297"]
[BlackElo "2452"]
[TimeControl "180+1"]
[EndTime "9:58:25 PDT"]
[Termination "Dr_Pepper18 won by resignation"]

1. d4 {[%clk 0:03:00.9]} 1... Nf6 {[%clk 0:02:59.3]} 2. Nc3 {[%clk 0:02:59.6]}
2... g6 {[%clk 0:02:59.8]} 3. e4 {[%clk 0:02:59.2]} 3... d6 {[%clk 0:02:59.4]}
4. Bf4 {[%clk 0:02:58.8]} 4... Bg7 {[%clk 0:02:59.5]} 5. Qd2 {[%clk 0:02:58.6]}
5... h5 {[%clk 0:02:58.2]} 6. h3 {[%clk 0:02:57]} 6... c6 {[%clk 0:02:57.5]} 7.
Nf3 {[%clk 0:02:54.1]} 7... Qa5 {[%clk 0:02:36]} 8. a3 {[%clk 0:02:50.1]} 8...
b5 {[%clk 0:02:34.7]} 9. e5 {[%clk 0:02:35.4]} 9... b4 {[%clk 0:02:15]} 10. exf6
{[%clk 0:02:08.1]} 10... bxc3 {[%clk 0:02:12.5]} 11. fxg7 {[%clk 0:02:06.9]}
11... cxd2+ {[%clk 0:01:49.4]} 12. Bxd2 {[%clk 0:02:06.6]} 12... Qxd2+ {[%clk
0:01:49]} 13. Kxd2 {[%clk 0:01:59.1]} 13... Rg8 {[%clk 0:01:48.6]} 14. Bd3
{[%clk 0:01:51.7]} 14... Rxg7 {[%clk 0:01:48.5]} 15. Rhe1 {[%clk 0:01:49.2]}
15... Ba6 {[%clk 0:01:15]} 16. Re3 {[%clk 0:01:46.5]} 16... Bxd3 {[%clk
0:01:14.7]} 17. Kxd3 {[%clk 0:01:46.6]} 17... Nd7 {[%clk 0:01:12.2]} 18. Rae1
{[%clk 0:01:45.7]} 18... e6 {[%clk 0:01:12.6]} 19. c4 {[%clk 0:01:32.1]} 19...
Rg8 {[%clk 0:01:07.8]} 20. Kc3 {[%clk 0:01:28.1]} 20... Ke7 {[%clk 0:00:58.9]}
21. Ng5 {[%clk 0:01:25.1]} 21... a5 {[%clk 0:00:45.8]} 22. Nxe6 {[%clk
0:01:20.2]} 22... fxe6 {[%clk 0:00:42.2]} 23. Rxe6+ {[%clk 0:01:20.5]} 23... Kd8
{[%clk 0:00:38.9]} 24. Rxd6 {[%clk 0:01:16.8]} 24... Kc7 {[%clk 0:00:38]} 25.
Ree6 {[%clk 0:01:15.1]} 25... Nb8 {[%clk 0:00:28]} 26. Rxg6 {[%clk 0:01:13.1]}
26... Rxg6 {[%clk 0:00:27.7]} 27. Rxg6 {[%clk 0:01:12.7]} 27... Nd7 {[%clk
0:00:26.7]} 28. Rh6 {[%clk 0:00:59.6]} 28... Rf8 {[%clk 0:00:27.2]} 29. f3
{[%clk 0:00:59.2]} 29... Rf5 {[%clk 0:00:24]} 30. b4 {[%clk 0:00:56.2]} 30...
axb4+ {[%clk 0:00:23.9]} 31. axb4 {[%clk 0:00:55.7]} 31... Nb6 {[%clk
0:00:17.6]} 32. Kd3 {[%clk 0:00:54.9]} 32... Rg5 {[%clk 0:00:11]} 33. g4 {[%clk
0:00:53.8]} 33... hxg4 {[%clk 0:00:11.5]} 34. hxg4 {[%clk 0:00:53.1]} 34... Rg8
{[%clk 0:00:12.2]} 35. Rh7+ {[%clk 0:00:51]} 35... Nd7 {[%clk 0:00:10.4]} 36.
Ke4 {[%clk 0:00:43.8]} 36... Re8+ {[%clk 0:00:09.9]} 37. Kd3 {[%clk 0:00:42.6]}
37... Rf8 {[%clk 0:00:09.7]} 38. Ke3 {[%clk 0:00:41.6]} 38... Kd6 {[%clk
0:00:10.2]} 39. Rh6+ {[%clk 0:00:40.1]} 39... Kc7 {[%clk 0:00:10.8]} 40. Rh7
{[%clk 0:00:39.2]} 40... Rb8 {[%clk 0:00:09.8]} 41. b5 {[%clk 0:00:32.9]} 41...
cxb5 {[%clk 0:00:09.7]} 42. cxb5 {[%clk 0:00:33.3]} 42... Rxb5 {[%clk
0:00:10.3]} 43. f4 {[%clk 0:00:33.3]} 43... Kd6 {[%clk 0:00:09.7]} 44. Rh6+
{[%clk 0:00:32.3]} 44... Ke7 {[%clk 0:00:09.6]} 45. g5 {[%clk 0:00:30.7]} 45...
Nf8 {[%clk 0:00:09.1]} 46. Ke4 {[%clk 0:00:28.7]} 46... Ne6 {[%clk 0:00:06.9]}
47. Rh7+ {[%clk 0:00:28.2]} 47... Kd6 {[%clk 0:00:06.8]} 48. Rh6 {[%clk
0:00:26.9]} 48... Ke7 {[%clk 0:00:05.5]} 49. Rh7+ {[%clk 0:00:25.8]} 49... Kf8
{[%clk 0:00:05.9]} 50. d5 {[%clk 0:00:24.5]} 50... Nd8 {[%clk 0:00:02.5]} 51.
Rd7 {[%clk 0:00:22.7]} 51... Nf7 {[%clk 0:00:01.9]} 52. Kf5 {[%clk 0:00:21.8]}
52... Rb4 {[%clk 0:00:01.4]} 53. Kf6 {[%clk 0:00:21.1]} 53... Rxf4+ {[%clk
0:00:01.2]} 54. Kg6 {[%clk 0:00:20.4]} 54... Ne5+ {[%clk 0:00:01.9]} 55. Kh5
{[%clk 0:00:20]} 55... Nxd7 {[%clk 0:00:02.8]} 56. g6 {[%clk 0:00:20.5]} 56...
Rf5+ {[%clk 0:00:03.2]} 57. Kg4 {[%clk 0:00:19.9]} 57... Rxd5 {[%clk 0:00:04.1]}
58. g7+ {[%clk 0:00:20]} 58... Kxg7 {[%clk 0:00:04.6]} 0-1

[Event "Early-Titled-Tuesday-Blitz-June-18-2024"]
[Site "Chess.com"]
[Date "2024.06.18"]
[Round "10"]
[White "Timurist"]
[Black "pineapplehhh"]
[Result "1-0"]
[WhiteElo "2372"]
[BlackElo "2116"]
[TimeControl "180+1"]
[EndTime "9:58:26 PDT"]
[Termination "Timurist won on time"]

1. e4 {[%clk 0:03:00.9]} 1... e5 {[%clk 0:02:59.8]} 2. Nf3 {[%clk 0:03:01.2]}
2... Nc6 {[%clk 0:03:00.1]} 3. d4 {[%clk 0:03:01.7]} 3... exd4 {[%clk
0:02:59.6]} 4. Bc4 {[%clk 0:03:02.3]} 4... Nf6 {[%clk 0:02:58.7]} 5. e5 {[%clk
0:03:01.3]} 5... d5 {[%clk 0:02:53.5]} 6. Bb5 {[%clk 0:03:01.1]} 6... Nd7 {[%clk
0:02:53.6]} 7. O-O {[%clk 0:02:59.1]} 7... Be7 {[%clk 0:02:46.9]} 8. Bxc6 {[%clk
0:02:57.2]} 8... bxc6 {[%clk 0:02:46.7]} 9. e6 {[%clk 0:02:56.9]} 9... fxe6
{[%clk 0:02:43.4]} 10. Nxd4 {[%clk 0:02:57.2]} 10... Ne5 {[%clk 0:02:29.1]} 11.
Qh5+ {[%clk 0:02:52.2]} 11... Ng6 {[%clk 0:02:16.9]} 12. Nxc6 {[%clk 0:02:47.6]}
12... Qd6 {[%clk 0:02:16.9]} 13. Nxe7 {[%clk 0:02:35.5]} 13... Qxe7 {[%clk
0:02:16.6]} 14. Bg5 {[%clk 0:02:21]} 14... Qd6 {[%clk 0:02:07.5]} 15. Nc3 {[%clk
0:02:07.4]} 15... O-O {[%clk 0:02:06.3]} 16. Qe2 {[%clk 0:01:47]} 16... Ba6
{[%clk 0:02:00.4]} 17. Nb5 {[%clk 0:01:33]} 17... Qc6 {[%clk 0:01:57.3]} 18. c4
{[%clk 0:01:30.7]} 18... dxc4 {[%clk 0:01:44.5]} 19. Nc3 {[%clk 0:01:28.5]}
19... Rae8 {[%clk 0:01:37.7]} 20. Rad1 {[%clk 0:01:19.3]} 20... Bb7 {[%clk
0:01:37.4]} 21. f3 {[%clk 0:01:19.2]} 21... Rf5 {[%clk 0:01:32.9]} 22. Be3
{[%clk 0:01:18.4]} 22... Re5 {[%clk 0:01:27.7]} 23. Qf2 {[%clk 0:01:15.6]} 23...
a5 {[%clk 0:01:24.4]} 24. Rd4 {[%clk 0:01:11]} 24... Ne7 {[%clk 0:01:16]} 25.
Bf4 {[%clk 0:01:03]} 25... Rf5 {[%clk 0:01:13]} 26. Bg3 {[%clk 0:00:59.4]} 26...
Nd5 {[%clk 0:01:07.7]} 27. Re1 {[%clk 0:00:51.7]} 27... Nxc3 {[%clk 0:01:05.1]}
28. bxc3 {[%clk 0:00:51.8]} 28... Rd5 {[%clk 0:01:00.6]} 29. Rde4 {[%clk
0:00:45.5]} 29... Rd3 {[%clk 0:00:51.8]} 30. Be5 {[%clk 0:00:43.4]} 30... Qb6
{[%clk 0:00:48.3]} 31. Rd4 {[%clk 0:00:39.9]} 31... Rxc3 {[%clk 0:00:43.1]} 32.
Qg3 {[%clk 0:00:33.6]} 32... g6 {[%clk 0:00:36.1]} 33. Qh4 {[%clk 0:00:20.6]}
33... Rf8 {[%clk 0:00:36]} 34. Qe7 {[%clk 0:00:19]} 34... Rf7 {[%clk 0:00:34.9]}
35. Qe8+ {[%clk 0:00:18.4]} 35... Rf8 {[%clk 0:00:34.9]} 36. Qe7 {[%clk
0:00:19]} 36... Rf7 {[%clk 0:00:35.3]} 37. Qd8+ {[%clk 0:00:18.4]} 37... Rf8
{[%clk 0:00:34.5]} 38. Qh4 {[%clk 0:00:15.4]} 38... Rd3 {[%clk 0:00:32.8]} 39.
Kh1 {[%clk 0:00:14.4]} 39... Rxd4 {[%clk 0:00:32.3]} 40. Bxd4 {[%clk 0:00:14.8]}
40... Qb4 {[%clk 0:00:31.9]} 41. Rd1 {[%clk 0:00:13]} 41... c5 {[%clk
0:00:22.7]} 42. Be5 {[%clk 0:00:12.7]} 42... Qa4 {[%clk 0:00:22.6]} 43. Re1
{[%clk 0:00:11.9]} 43... Qd7 {[%clk 0:00:21.5]} 44. Qh6 {[%clk 0:00:11]} 44...
Rf5 {[%clk 0:00:18.4]} 45. h4 {[%clk 0:00:10.8]} 45... a4 {[%clk 0:00:12.9]} 46.
Kh2 {[%clk 0:00:11.2]} 46... Rh5 {[%clk 0:00:06.9]} 47. Qf4 {[%clk 0:00:10.3]}
47... Rf5 {[%clk 0:00:06.3]} 48. Qh6 {[%clk 0:00:09.7]} 48... Rh5 {[%clk
0:00:06.4]} 49. Qf4 {[%clk 0:00:10.4]} 49... Rf5 {[%clk 0:00:06.5]} 50. Qxc4
{[%clk 0:00:11]} 50... Bd5 {[%clk 0:00:04.5]} 51. Qxc5 {[%clk 0:00:10.9]} 51...
Qd8 {[%clk 0:00:03]} 52. Bg3 {[%clk 0:00:10.1]} 52... Qe8 {[%clk 0:00:01]} 53.
Qe3 {[%clk 0:00:09.9]} 53... Qd7 {[%clk 0:00:01.6]} 54. Rc1 {[%clk 0:00:09]}
54... a3 {[%clk 0:00:02]} 55. Rc7 {[%clk 0:00:09.5]} 55... Qd8 {[%clk
0:00:01.5]} 56. Qc3 {[%clk 0:00:10]} 1-0

[Event "Early-Titled-Tuesday-Blitz-June-18-2024"]
[Site "Chess.com"]
[Date "2024.06.18"]
[Round "10"]
[White "Anton_Demchenko"]
[Black "Dolphin_2010"]
[Result "0-1"]
[WhiteElo "2954"]
[BlackElo "2769"]
[TimeControl "180+1"]
[EndTime "9:58:29 PDT"]
[Termination "Dolphin_2010 won on time"]

1. e4 {[%clk 0:03:00.9]} 1... c6 {[%clk 0:02:58.7]} 2. d4 {[%clk 0:03:00.7]}
2... d5 {[%clk 0:02:46.6]} 3. e5 {[%clk 0:03:00.1]} 3... Bf5 {[%clk 0:02:29.1]}
4. Bd3 {[%clk 0:02:59.6]} 4... Bxd3 {[%clk 0:02:22.3]} 5. Qxd3 {[%clk
0:03:00.5]} 5... e6 {[%clk 0:02:08.7]} 6. c3 {[%clk 0:03:00.8]} 6... c5 {[%clk
0:02:05.5]} 7. Ne2 {[%clk 0:03:01.2]} 7... Nc6 {[%clk 0:02:01.2]} 8. O-O {[%clk
0:03:00.8]} 8... cxd4 {[%clk 0:01:57.1]} 9. cxd4 {[%clk 0:03:00.2]} 9... Nge7
{[%clk 0:01:57.5]} 10. Nd2 {[%clk 0:03:00.3]} 10... Nf5 {[%clk 0:01:46.6]} 11.
Nf3 {[%clk 0:02:59.9]} 11... Rc8 {[%clk 0:01:31.2]} 12. a3 {[%clk 0:02:58]}
12... Be7 {[%clk 0:01:28.1]} 13. g4 {[%clk 0:02:56.9]} 13... Nh4 {[%clk
0:01:23.4]} 14. Nxh4 {[%clk 0:02:56.8]} 14... Bxh4 {[%clk 0:01:24.3]} 15. f4
{[%clk 0:02:57.3]} 15... Be7 {[%clk 0:01:19.3]} 16. Bd2 {[%clk 0:02:49.9]} 16...
h5 {[%clk 0:01:18.8]} 17. f5 {[%clk 0:02:50]} 17... hxg4 {[%clk 0:01:17.2]} 18.
fxe6 {[%clk 0:02:50]} 18... fxe6 {[%clk 0:01:18]} 19. Bc3 {[%clk 0:01:21.4]}
19... Kd7 {[%clk 0:01:04.3]} 20. Rf7 {[%clk 0:01:19.7]} 20... Qg8 {[%clk
0:00:42.3]} 21. Raf1 {[%clk 0:01:18.6]} 21... Qh7 {[%clk 0:00:40.5]} 22. Qxh7
{[%clk 0:01:14.8]} 22... Rxh7 {[%clk 0:00:41.4]} 23. Nf4 {[%clk 0:00:40.5]}
23... Nd8 {[%clk 0:00:15.7]} 24. Rxe7+ {[%clk 0:00:36.2]} 24... Kxe7 {[%clk
0:00:15.7]} 25. Ng6+ {[%clk 0:00:36.2]} 25... Ke8 {[%clk 0:00:15.9]} 26. Rf8+
{[%clk 0:00:23]} 26... Kd7 {[%clk 0:00:16.2]} 27. Kg2 {[%clk 0:00:22.8]} 27...
Rh6 {[%clk 0:00:09.6]} 28. Nf4 {[%clk 0:00:22.4]} 28... b6 {[%clk 0:00:02.3]}
29. Kg3 {[%clk 0:00:20.4]} 29... g5 {[%clk 0:00:01.9]} 30. Ne2 {[%clk
0:00:17.4]} 30... Rh7 {[%clk 0:00:01.7]} 31. Kxg4 {[%clk 0:00:13.9]} 31... Nf7
{[%clk 0:00:02.4]} 32. Rxc8 {[%clk 0:00:14]} 32... Kxc8 {[%clk 0:00:03.1]} 33.
h3 {[%clk 0:00:14.6]} 33... Rh4+ {[%clk 0:00:03.3]} 34. Kg3 {[%clk 0:00:14.7]}
34... Nh6 {[%clk 0:00:04]} 35. Ng1 {[%clk 0:00:10.5]} 35... Nf5+ {[%clk
0:00:04]} 36. Kg2 {[%clk 0:00:11.1]} 36... g4 {[%clk 0:00:03.6]} 37. hxg4 {[%clk
0:00:07.9]} 37... Rxg4+ {[%clk 0:00:04.5]} 38. Kf2 {[%clk 0:00:08.5]} 38... Nxd4
{[%clk 0:00:04.3]} 39. Nh3 {[%clk 0:00:08.8]} 39... Nf5 {[%clk 0:00:03.6]} 40.
Kf3 {[%clk 0:00:09.1]} 40... Rg3+ {[%clk 0:00:03.7]} 41. Kf4 {[%clk 0:00:09.7]}
41... Rxh3 {[%clk 0:00:04.6]} 42. Kg5 {[%clk 0:00:10.6]} 42... Kd7 {[%clk
0:00:04.5]} 43. Bb4 {[%clk 0:00:10.9]} 43... Rf3 {[%clk 0:00:04.6]} 44. Kf6
{[%clk 0:00:11.4]} 44... d4 {[%clk 0:00:04.7]} 45. Kg5 {[%clk 0:00:11.4]} 45...
d3 {[%clk 0:00:05.6]} 46. Kg4 {[%clk 0:00:12.3]} 46... Rf1 {[%clk 0:00:05.8]}
47. Kg5 {[%clk 0:00:12.1]} 47... Kc6 {[%clk 0:00:06.4]} 48. Kf6 {[%clk
0:00:11.9]} 48... Kd5 {[%clk 0:00:07.3]} 49. Kf7 {[%clk 0:00:12.1]} 49... a5
{[%clk 0:00:07.5]} 50. Bc3 {[%clk 0:00:12.3]} 50... Nd4+ {[%clk 0:00:06.8]} 51.
Ke7 {[%clk 0:00:12.4]} 51... Nb5 {[%clk 0:00:06.8]} 52. Bd2 {[%clk 0:00:11.9]}
52... Kxe5 {[%clk 0:00:06.9]} 53. Kd7 {[%clk 0:00:12]} 53... Kd5 {[%clk
0:00:07.3]} 54. Kc8 {[%clk 0:00:11.9]} 54... Rf7 {[%clk 0:00:05]} 55. Kd8 {[%clk
0:00:11.9]} 55... Nd6 {[%clk 0:00:04.8]} 56. Bg5 {[%clk 0:00:08.5]} 56... e5
{[%clk 0:00:05.2]} 57. Bh4 {[%clk 0:00:07.6]} 57... d2 {[%clk 0:00:05.5]} 58.
Bg5 {[%clk 0:00:08.2]} 58... d1=Q {[%clk 0:00:06.4]} 59. Be7 {[%clk 0:00:08.4]}
59... Qg4 {[%clk 0:00:06.8]} 0-1